fUST/lending_fUST_20251209
["ID","MTS","AMOUNT","RATE_DAILY","PERIOD"]
[397704392,1765222239901,-611.46,8.219e-05,2]
[397704393,1765222239910,-500.0,8.219e-05,2]
[397704395,1765222239920,-500.0,8.219e-05,2]
[397704397,1765222239929,-500.0,8.219e-05,2]
[397704399,1765222239938,-500.0,8.219e-05,2]
[397704401,1765222239947,-500.0,8.219e-05,2]
[397704403,1765222239957,-500.0,8.219e-05,2]
[397704405,1765222239966,-500.0,8.219e-05,2]
[397704407,1765222239975,-1024.59,8.219e-05,2]
[397704410,1765222239985,-555.39,8.219e-05,2]
[397704411,1765222239994,-500.0,8.219e-05,2]
[397704413,1765222240003,-223.32684965,8.219e-05,2]
[397704415,1765222240012,-1337.51,8.219e-05,2]
[397704417,1765222240022,-500.0,8.219e-05,2]
[397704419,1765222240031,-500.0,8.219e-05,2]
[397704421,1765222240042,-500.0,8.219e-05,2]
[397704423,1765222240051,-500.0,8.219e-05,2]
[397704425,1765222240060,-500.0,8.219e-05,2]
[397704428,1765222240071,-710.23,8.219e-05,2]
[397704430,1765222240081,-500.0,8.219e-05,2]
[397704432,1765222240090,-1349.34,8.219e-05,2]
[397704434,1765222240099,-612.89,8.219e-05,2]
[397704436,1765222240116,-254.66201316,8.219e-05,2]
[397704439,1765222240129,-500.0,8.219e-05,2]
[397704441,1765222240139,-500.0,8.219e-05,2]
[397704443,1765222240149,-500.36,8.219e-05,2]
[397704445,1765222240160,-500.0,8.219e-05,2]
[397704447,1765222240170,-907.85,8.219e-05,2]
[397704450,1765222240181,-500.0,8.219e-05,2]
[397704452,1765222240192,-500.0,8.219e-05,2]
[397704454,1765222240202,-500.0,8.219e-05,2]
[397704456,1765222240211,-500.0,8.219e-05,2]
[397704458,1765222240221,-500.0,8.219e-05,2]
[397704460,1765222240230,-588.03,8.219e-05,2]
[397704462,1765222240240,-500.0,8.219e-05,2]
[397704463,1765222240249,-566.64,8.219e-05,2]
[397704464,1765222240258,-1013.7,8.219e-05,2]
[397704465,1765222240267,-500.0,8.219e-05,2]
[397704466,1765222240277,-2160.95,8.219e-05,2]
[397704467,1765222240286,-643.57,8.219e-05,2]
[397704468,1765222240295,-500.0,8.219e-05,2]
[397704469,1765222240304,-500.0,8.219e-05,2]
[397704470,1765222240314,-1683.89,8.219e-05,2]
[397704471,1765222240325,-952.07,8.219e-05,2]
[397704472,1765222240335,-500.0,8.219e-05,2]
[397704473,1765222240344,-500.0,8.219e-05,2]
[397704474,1765222240353,-500.0,8.219e-05,2]
[397704475,1765222240363,-500.0,8.219e-05,2]
[397704476,1765222240372,-500.0,8.219e-05,2]
[397704477,1765222240382,-585.63,8.219e-05,2]
[397704478,1765222240391,-500.0,8.219e-05,2]
[397704479,1765222240401,-500.0,8.219e-05,2]
[397704480,1765222240410,-500.0,8.219e-05,2]
[397704481,1765222240419,-500.0,8.219e-05,2]
[397704482,1765222240428,-961.08,8.219e-05,2]
[397704483,1765222240437,-753.99,8.219e-05,2]
[397704484,1765222240447,-500.0,8.219e-05,2]
[397704485,1765222240456,-721.48,8.219e-05,2]
[397704486,1765222240465,-500.0,8.219e-05,2]
[397704487,1765222240474,-500.0,8.219e-05,2]
[397704488,1765222240483,-500.0,8.219e-05,2]
[397704489,1765222240492,-530.16,8.219e-05,2]
[397704490,1765222240502,-500.0,8.219e-05,2]
[397704491,1765222240511,-500.0,8.219e-05,2]
[397704492,1765222240521,-1048.2,8.219e-05,2]
[397704493,1765222240531,-500.0,8.219e-05,2]
[397704494,1765222240541,-745.12,8.219e-05,2]
[397704495,1765222240551,-500.0,8.219e-05,2]
[397704496,1765222240560,-500.0,8.219e-05,2]
[397704497,1765222240570,-151.0,8.219e-05,2]
[397704498,1765222240580,-470.0,8.219e-05,2]
[397704499,1765222240590,-500.0,8.219e-05,2]
[397704501,1765222240600,-500.0,8.219e-05,2]
[397704503,1765222240610,-944.5,8.219e-05,2]
[397704505,1765222240620,-500.0,8.219e-05,2]
[397704507,1765222240630,-1423.9,8.219e-05,2]
[397704509,1765222240641,-151.0,8.219e-05,2]
[397704511,1765222240651,-500.0,8.219e-05,2]
[397704513,1765222240662,-500.0,8.219e-05,2]
[397704515,1765222240676,-500.0,8.219e-05,2]
[397704517,1765222240687,-500.0,8.219e-05,2]
[397704520,1765222240697,-500.0,8.219e-05,2]
[397704522,1765222240707,-500.0,8.219e-05,2]
[397704523,1765222240716,-152.00802856,8.219e-05,2]
[397704526,1765222240726,-500.0,8.219e-05,2]
[397704528,1765222240737,-151.0,8.219e-05,2]
[397704530,1765222240748,-500.0,8.219e-05,2]
[397704532,1765222240758,-1227.89,8.219e-05,2]
[397704534,1765222240767,-500.0,8.219e-05,2]
[397704536,1765222240778,-500.0,8.219e-05,2]
[397704538,1765222240791,-500.0,8.219e-05,2]
[397704540,1765222240801,-521.93,8.219e-05,2]
[397704543,1765222240811,-678.7,8.219e-05,2]
[397704545,1765222240821,-500.0,8.219e-05,2]
[397704547,1765222240831,-550.88,8.219e-05,2]
[397704549,1765222240840,-500.0,8.219e-05,2]
[397704551,1765222240849,-500.0,8.219e-05,2]
[397704553,1765222240859,-500.0,8.219e-05,2]
[397704555,1765222240868,-500.0,8.219e-05,2]
[397704557,1765222240878,-500.0,8.219e-05,2]
[397704559,1765222240887,-500.0,8.219e-05,2]
[397704561,1765222240897,-500.0,8.219e-05,2]
[397704563,1765222240906,-500.0,8.219e-05,2]
[397704565,1765222240915,-500.0,8.219e-05,2]
[397704567,1765222240925,-500.0,8.219e-05,2]
[397704569,1765222240934,-500.0,8.219e-05,2]
[397704571,1765222240944,-931.2,8.219e-05,2]
[397704573,1765222240953,-500.0,8.219e-05,2]
[397704574,1765222240963,-500.0,8.219e-05,2]
[397704576,1765222240972,-1953.42,8.219e-05,2]
[397704578,1765222240982,-915.87,8.219e-05,2]
[397704579,1765222240991,-1352.46,8.219e-05,2]
[397704581,1765222241001,-616.7,8.219e-05,2]
[397704584,1765222241012,-628.17,8.219e-05,2]
[397704586,1765222241021,-873.64,8.219e-05,2]
[397704588,1765222241033,-500.0,8.219e-05,2]
[397704590,1765222241042,-500.0,8.219e-05,2]
[397704592,1765222241051,-500.0,8.219e-05,2]
[397704594,1765222241060,-500.0,8.219e-05,2]
[397704596,1765222241070,-500.0,8.219e-05,2]
[397704598,1765222241079,-420.01391614,8.219e-05,2]
[397704600,1765222241089,-787.73,8.219e-05,2]
[397704602,1765222241098,-500.0,8.219e-05,2]
[397704604,1765222241108,-500.0,8.219e-05,2]
[397704606,1765222241117,-500.0,8.219e-05,2]
[397704608,1765222241126,-500.0,8.219e-05,2]
[397704609,1765222241135,-500.0,8.219e-05,2]
[397704611,1765222241144,-500.0,8.219e-05,2]
[397704641,1765222241154,-500.0,8.219e-05,2]
[397704645,1765222241429,-604.76,8.219e-05,2]
[397704647,1765222241439,-868.37,8.219e-05,2]
[397704649,1765222241448,-500.0,8.219e-05,2]
[397704651,1765222241458,-500.0,8.219e-05,2]
[397704653,1765222241467,-500.0,8.219e-05,2]
[397704654,1765222241477,-500.0,8.219e-05,2]
[397704657,1765222241487,-594.62,8.219e-05,2]
[397704658,1765222241497,-534.72045051,8.219e-05,2]
[397704660,1765222241506,-500.0,8.219e-05,2]
[397704662,1765222241516,-655.2,8.219e-05,2]
[397704664,1765222241525,-637.66,8.219e-05,2]
[397704666,1765222241535,-500.0,8.219e-05,2]
[397704668,1765222241544,-433.74871452,8.219e-05,2]
[397704670,1765222241554,-2734.82,8.219e-05,2]
[397704672,1765222241564,-500.0,8.219e-05,2]
[397704674,1765222241573,-1053.26,8.219e-05,2]
[397704676,1765222241583,-570.13,8.219e-05,2]
[397704678,1765222241592,-500.0,8.219e-05,2]
[397704680,1765222241602,-500.0,8.219e-05,2]
[397704682,1765222241611,-500.0,8.219e-05,2]
[397704684,1765222241621,-500.0,8.219e-05,2]
[397704686,1765222241631,-500.0,8.219e-05,2]
[397704688,1765222241641,-500.0,8.219e-05,2]
[397704690,1765222241651,-616.57,8.219e-05,2]
[397704692,1765222241661,-500.0,8.219e-05,2]
[397704694,1765222241675,-362.15488828,8.219e-05,2]
[397704696,1765222241684,-500.0,8.219e-05,2]
[397704698,1765222241693,-500.0,8.219e-05,2]
[397704700,1765222241703,-500.0,8.219e-05,2]
[397704702,1765222241714,-500.0,8.219e-05,2]
[397704704,1765222241724,-500.0,8.219e-05,2]
[397704706,1765222241733,-500.0,8.219e-05,2]
[397704708,1765222241743,-500.0,8.219e-05,2]
[397704710,1765222241753,-500.0,8.219e-05,2]
[397704712,1765222241763,-500.0,8.219e-05,2]
[397704714,1765222241774,-500.0,8.219e-05,2]
[397704716,1765222241783,-500.0,8.219e-05,2]
[397704718,1765222241792,-877.46,8.219e-05,2]
[397704720,1765222241800,-500.0,8.219e-05,2]
[397704722,1765222241810,-500.0,8.219e-05,2]
[397704724,1765222241819,-500.0,8.219e-05,2]
[397704726,1765222241828,-500.0,8.219e-05,2]
[397704728,1765222241837,-500.0,8.219e-05,2]
[397704730,1765222241846,-500.0,8.219e-05,2]
[397704732,1765222241855,-500.0,8.219e-05,2]
[397704734,1765222241864,-814.59,8.219e-05,2]
[397704736,1765222241873,-500.0,8.219e-05,2]
[397704738,1765222241883,-500.0,8.219e-05,2]
[397704740,1765222241892,-819.34,8.219e-05,2]
[397704742,1765222241902,-500.0,8.219e-05,2]
[397704744,1765222241911,-548.87,8.219e-05,2]
[397704746,1765222241920,-500.0,8.219e-05,2]
[397704748,1765222241933,-154.07358229,8.219e-05,2]
[397704750,1765222241943,-500.0,8.219e-05,2]
[397704752,1765222241953,-500.0,8.219e-05,2]
[397704754,1765222241963,-500.0,8.219e-05,2]
[397704756,1765222241972,-500.0,8.219e-05,2]
[397704758,1765222241981,-500.0,8.219e-05,2]
[397704760,1765222241991,-500.0,8.219e-05,2]
[397704762,1765222242001,-500.0,8.219e-05,2]
[397704764,1765222242011,-2154.0,8.219e-05,2]
[397704766,1765222242022,-500.0,8.219e-05,2]
[397704768,1765222242032,-500.0,8.219e-05,2]
[397704770,1765222242042,-500.0,8.219e-05,2]
[397704772,1765222242053,-500.0,8.219e-05,2]
[397704774,1765222242062,-151.0,8.219e-05,2]
[397704776,1765222242071,-151.0,8.219e-05,2]
[397704778,1765222242081,-151.0,8.219e-05,2]
[397704780,1765222242090,-151.0,8.219e-05,2]
[397704782,1765222242099,-500.0,8.219e-05,2]
[397704784,1765222242108,-151.0,8.219e-05,2]
[397704786,1765222242117,-151.0,8.219e-05,2]
[397704788,1765222242127,-151.0,8.219e-05,2]
[397704790,1765222242136,-151.0,8.219e-05,2]
[397704792,1765222242147,-500.0,8.219e-05,2]
[397704794,1765222242156,-500.0,8.219e-05,2]
[397704796,1765222242165,-151.55243295,8.219e-05,2]
[397704798,1765222242175,-500.0,8.219e-05,2]
[397704800,1765222242184,-151.0,8.219e-05,2]
[397704802,1765222242193,-500.0,8.219e-05,2]
[397704804,1765222242203,-500.0,8.219e-05,2]
[397704806,1765222242212,-500.0,8.219e-05,2]
[397704808,1765222242221,-546.4,8.219e-05,2]
[397704810,1765222242230,-500.0,8.219e-05,2]
[397704812,1765222242239,-309.19112593,8.219e-05,2]
[397704814,1765222242248,-945.45,8.219e-05,2]
[397704816,1765222242258,-761.35,8.219e-05,2]
[397704818,1765222242267,-1459.66,8.219e-05,2]
[397704820,1765222242276,-500.0,8.219e-05,2]
[397704822,1765222242286,-500.0,8.219e-05,2]
[397704824,1765222242295,-566.88,8.219e-05,2]
[397704826,1765222242304,-500.0,8.219e-05,2]
[397704828,1765222242313,-1157.68,8.219e-05,2]
[397704830,1765222242322,-500.0,8.219e-05,2]
[397704832,1765222242331,-500.0,8.219e-05,2]
[397704834,1765222242340,-500.0,8.219e-05,2]
[397704836,1765222242350,-4640.25,8.219e-05,2]
[397704838,1765222242359,-500.0,8.219e-05,2]
[397704840,1765222242369,-500.0,8.219e-05,2]
[397704842,1765222242378,-500.0,8.219e-05,2]
[397704843,1765222242388,-500.0,8.219e-05,2]
[397704845,1765222242397,-611.67403912,8.219e-05,2]
[397704847,1765222242407,-1206.81,8.219e-05,2]
[397704849,1765222242416,-500.0,8.219e-05,2]
[397704851,1765222242425,-500.0,8.219e-05,2]
[397704853,1765222242435,-885.33,8.219e-05,2]
[397704855,1765222242444,-500.0,8.219e-05,2]
[397704857,1765222242454,-804.88,8.219e-05,2]
[397704860,1765222242463,-500.0,8.219e-05,2]
[397704861,1765222242472,-699.76,8.219e-05,2]
[397704863,1765222242481,-500.0,8.219e-05,2]
[397704865,1765222242491,-500.0,8.219e-05,2]
[397704867,1765222242500,-500.0,8.219e-05,2]
[397704869,1765222242509,-716.8,8.219e-05,2]
[397704871,1765222242518,-1025.91,8.219e-05,2]
[397704873,1765222242528,-1075.77,8.219e-05,2]
[397704875,1765222242537,-500.0,8.219e-05,2]
[397704877,1765222242548,-500.0,8.219e-05,2]
[397704879,1765222242557,-527.29024902,8.219e-05,2]
[397704882,1765222242567,-500.0,8.219e-05,2]
[397704884,1765222242577,-500.0,8.219e-05,2]
[397704886,1765222242586,-500.0,8.219e-05,2]
[397704888,1765222242596,-500.0,8.219e-05,2]
[397704889,1765222242606,-500.0,8.219e-05,2]
[397704891,1765222242615,-500.0,8.219e-05,2]
[397704893,1765222242624,-561.35631846,8.219e-05,2]
[397704895,1765222242634,-500.0,8.219e-05,2]
[397704897,1765222242643,-734.46,8.219e-05,2]
[397704899,1765222242653,-500.0,8.219e-05,2]
[397704901,1765222242663,-500.0,8.219e-05,2]
[397704903,1765222242676,-500.0,8.219e-05,2]
[397704905,1765222242685,-609.51814303,8.219e-05,2]
[397704907,1765222242694,-500.0,8.219e-05,2]
[397704909,1765222242704,-500.0,8.219e-05,2]
[397704911,1765222242715,-2150.55,8.219e-05,2]
[397704913,1765222242725,-1016.04,8.219e-05,2]
[397704915,1765222242735,-500.0,8.219e-05,2]
[397704917,1765222242752,-943.31,8.219e-05,2]
[397704919,1765222242766,-500.0,8.219e-05,2]
[397704921,1765222242776,-764.54,8.219e-05,2]
[397704923,1765222242786,-500.0,8.219e-05,2]
[397704925,1765222242795,-500.0,8.219e-05,2]
[397704927,1765222242805,-692.01,8.219e-05,2]
[397704929,1765222242815,-600.95,8.219e-05,2]
[397704931,1765222242824,-500.0,8.219e-05,2]
[397704933,1765222242834,-500.0,8.219e-05,2]
[397704935,1765222242843,-500.0,8.219e-05,2]
[397704937,1765222242853,-1101.43,8.219e-05,2]
[397704939,1765222242863,-500.0,8.219e-05,2]
[397704942,1765222242872,-500.0,8.219e-05,2]
[397704943,1765222242882,-500.0,8.219e-05,2]
[397704945,1765222242892,-1098.63,8.219e-05,2]
[397704947,1765222242905,-6765.94,8.219e-05,2]
[397704949,1765222242914,-948.15,8.219e-05,2]
[397704952,1765222242925,-650.49,8.219e-05,2]
[397704954,1765222242935,-500.0,8.219e-05,2]
[397704956,1765222242944,-614.88,8.219e-05,2]
[397704958,1765222242954,-500.0,8.219e-05,2]
[397704960,1765222242964,-500.0,8.219e-05,2]
[397704962,1765222242975,-588.17,8.219e-05,2]
[397704964,1765222242984,-500.0,8.219e-05,2]
[397704966,1765222242994,-1131.78,8.219e-05,2]
[397704968,1765222243004,-180.00595885,8.219e-05,2]
[397704970,1765222243014,-500.0,8.219e-05,2]
[397704972,1765222243024,-788.15,8.219e-05,2]
[397704974,1765222243033,-500.0,8.219e-05,2]
[397704976,1765222243042,-1077.81,8.219e-05,2]
[397704978,1765222243052,-500.0,8.219e-05,2]
[397704980,1765222243061,-500.0,8.219e-05,2]
[397704982,1765222243071,-597.39,8.219e-05,2]
[397704984,1765222243080,-8208.13,8.219e-05,2]
[397704986,1765222243090,-1020.34,8.219e-05,2]
[397704988,1765222243099,-500.0,8.219e-05,2]
[397704990,1765222243108,-573.2,8.219e-05,2]
[397704992,1765222243118,-500.0,8.219e-05,2]
[397704994,1765222243130,-207.82155916,8.219e-05,2]
[397704996,1765222243139,-739.31,8.219e-05,2]
[397704998,1765222243151,-500.0,8.219e-05,2]
[397705000,1765222243162,-545.83,8.219e-05,2]
[397705002,1765222243174,-779.45,8.219e-05,2]
[397705004,1765222243185,-1360.93,8.219e-05,2]
[397705006,1765222243196,-655.21,8.219e-05,2]
[397705009,1765222243206,-500.0,8.219e-05,2]
[397705011,1765222243216,-1300.94,8.219e-05,2]
[397705013,1765222243227,-500.0,8.219e-05,2]
[397705015,1765222243237,-2839.05,8.219e-05,2]
[397705017,1765222243247,-500.0,8.219e-05,2]
[397705019,1765222243257,-943.61,8.219e-05,2]
[397705021,1765222243267,-500.0,8.219e-05,2]
[397705023,1765222243277,-1664.64,8.219e-05,2]
[397705025,1765222243287,-2196.47,8.219e-05,2]
[397705027,1765222243296,-500.0,8.219e-05,2]
[397705029,1765222243307,-500.0,8.219e-05,2]
[397705031,1765222243316,-500.0,8.219e-05,2]
[397705033,1765222243325,-601.94,8.219e-05,2]
[397705035,1765222243337,-1503.16,8.219e-05,2]
[397705037,1765222243348,-500.0,8.219e-05,2]
[397705039,1765222243358,-500.0,8.219e-05,2]
[397705041,1765222243367,-889.61,8.219e-05,2]
[397705043,1765222243377,-1217.87,8.219e-05,2]
[397705045,1765222243386,-1540.41,8.219e-05,2]
[397705047,1765222243398,-824.43,8.219e-05,2]
[397705049,1765222243407,-500.0,8.219e-05,2]
[397705052,1765222243424,-1342.72,8.219e-05,2]
[397705054,1765222243433,-2101.76,8.219e-05,2]
[397705056,1765222243443,-500.0,8.219e-05,2]
[397705058,1765222243452,-500.0,8.219e-05,2]
[397705060,1765222243462,-500.0,8.219e-05,2]
[397705062,1765222243471,-500.0,8.219e-05,2]
[397705064,1765222243481,-784.75,8.219e-05,2]
[397705066,1765222243491,-1073.26,8.219e-05,2]
[397705068,1765222243500,-878.99,8.219e-05,2]
[397705070,1765222243510,-3100.47,8.219e-05,2]
[397705072,1765222243520,-4075.17,8.219e-05,2]
[397705074,1765222243530,-169.730852,8.219e-05,2]
[397705076,1765222243540,-520.41,8.219e-05,2]
[397705078,1765222243549,-563.11,8.219e-05,2]
[397705080,1765222243559,-510.45827881,8.219e-05,2]
[397705082,1765222243567,-1095.78,8.219e-05,2]
[397705084,1765222243578,-500.0,8.219e-05,2]
[397705086,1765222243587,-1501.69,8.219e-05,2]
[397705088,1765222243596,-500.0,8.219e-05,2]
[397705090,1765222243606,-503.04,8.219e-05,2]
[397705092,1765222243616,-986.7,8.219e-05,2]
[397705094,1765222243626,-542.36,8.219e-05,2]
[397705096,1765222243635,-516.16,8.219e-05,2]
[397705098,1765222243644,-500.0,8.219e-05,2]
[397705100,1765222243655,-595.57,8.219e-05,2]
[397705102,1765222243665,-500.0,8.219e-05,2]
[397705104,1765222243679,-500.0,8.219e-05,2]
[397705106,1765222243688,-2205.406198,8.219e-05,2]
[397705108,1765222243697,-217.70201744,8.219e-05,2]
[397705111,1765222243706,-500.0,8.219e-05,2]
[397705113,1765222243716,-22225.88,8.219e-05,2]
[397705115,1765222243726,-500.0,8.219e-05,2]
[397705117,1765222243735,-500.0,8.219e-05,2]
[397705119,1765222243744,-500.0,8.219e-05,2]
[397705121,1765222243755,-1854.33,8.219e-05,2]
[397705123,1765222243764,-500.0,8.219e-05,2]
[397705125,1765222243773,-500.0,8.219e-05,2]
[397705127,1765222243783,-500.0,8.219e-05,2]
[397705129,1765222243792,-500.0,8.219e-05,2]
[397705131,1765222243801,-500.0,8.219e-05,2]
[397705133,1765222243811,-500.0,8.219e-05,2]
[397705135,1765222243820,-2212.06,8.219e-05,2]
[397705137,1765222243829,-500.0,8.219e-05,2]
[397705139,1765222243838,-500.0,8.219e-05,2]
[397705141,1765222243847,-500.0,8.219e-05,2]
[397705143,1765222243856,-500.0,8.219e-05,2]
[397705145,1765222243866,-500.0,8.219e-05,2]
[397705147,1765222243875,-500.0,8.219e-05,2]
[397705149,1765222243884,-500.0,8.219e-05,2]
[397705151,1765222243893,-500.0,8.219e-05,2]
[397705153,1765222243902,-1396.39,8.219e-05,2]
[397705155,1765222243911,-500.0,8.219e-05,2]
[397705157,1765222243920,-500.0,8.219e-05,2]
[397705159,1765222243930,-621.44,8.219e-05,2]
[397705161,1765222243939,-1629.71,8.219e-05,2]
[397705163,1765222243949,-500.0,8.219e-05,2]
[397705165,1765222243958,-986.42,8.219e-05,2]
[397705167,1765222243968,-500.0,8.219e-05,2]
[397705169,1765222243977,-2576.18,8.219e-05,2]
[397705171,1765222243987,-500.0,8.219e-05,2]
[397705173,1765222243996,-4852.55,8.219e-05,2]
[397705175,1765222244006,-805.24,8.219e-05,2]
[397705177,1765222244016,-556.68,8.219e-05,2]
[397705179,1765222244025,-500.0,8.219e-05,2]
[397705181,1765222244034,-1126.09,8.219e-05,2]
[397705183,1765222244044,-500.0,8.219e-05,2]
[397705185,1765222244053,-767.79,8.219e-05,2]
[397705187,1765222244062,-611.67533338,8.219e-05,2]
[397705189,1765222244071,-749.29,8.219e-05,2]
[397705191,1765222244080,-646.93,8.219e-05,2]
[397705193,1765222244090,-500.0,8.219e-05,2]
[397705196,1765222244105,-500.0,8.219e-05,2]
[397705198,1765222244115,-602.08169905,8.219e-05,2]
[397705200,1765222244125,-6977.46,8.219e-05,2]
[397705202,1765222244133,-500.0,8.219e-05,2]
[397705204,1765222244143,-6922.39,8.219e-05,2]
[397705206,1765222244151,-500.0,8.219e-05,2]
[397705208,1765222244161,-500.0,8.219e-05,2]
[397705210,1765222244170,-500.0,8.219e-05,2]
[397705212,1765222244179,-500.0,8.219e-05,2]
[397705214,1765222244188,-727.68,8.219e-05,2]
[397705216,1765222244198,-500.0,8.219e-05,2]
[397705218,1765222244207,-500.0,8.219e-05,2]
[397705220,1765222244216,-793.96,8.219e-05,2]
[397705222,1765222244225,-500.0,8.219e-05,2]
[397705224,1765222244234,-808.91,8.219e-05,2]
[397705226,1765222244243,-500.0,8.219e-05,2]
[397705228,1765222244252,-868.23,8.219e-05,2]
[397705230,1765222244262,-500.0,8.219e-05,2]
[397705232,1765222244271,-500.0,8.219e-05,2]
[397705234,1765222244280,-500.0,8.219e-05,2]
[397705236,1765222244289,-500.0,8.219e-05,2]
[397705238,1765222244299,-500.0,8.219e-05,2]
[397705240,1765222244308,-500.0,8.219e-05,2]
[397705242,1765222244317,-500.0,8.219e-05,2]
[397705244,1765222244327,-500.0,8.219e-05,2]
[397705246,1765222244336,-500.0,8.219e-05,2]
[397705248,1765222244345,-1283.22,8.219e-05,2]
[397705250,1765222244354,-826.4,8.219e-05,2]
[397705252,1765222244363,-2165.8,8.219e-05,2]
[397705254,1765222244372,-500.0,8.219e-05,2]
[397705256,1765222244382,-4475.67,8.219e-05,2]
[397705258,1765222244391,-579.16,8.219e-05,2]
[397705260,1765222244401,-500.0,8.219e-05,2]
[397705262,1765222244410,-500.0,8.219e-05,2]
[397705264,1765222244420,-500.0,8.219e-05,2]
[397705266,1765222244429,-4231.87,8.219e-05,2]
[397705268,1765222244438,-644.0,8.219e-05,2]
[397705270,1765222244447,-749.26,8.219e-05,2]
[397705272,1765222244456,-736.82,8.219e-05,2]
[397705274,1765222244466,-500.0,8.219e-05,2]
[397705276,1765222244475,-568.18,8.219e-05,2]
[397705278,1765222244484,-869.51,8.219e-05,2]
[397705280,1765222244494,-500.0,8.219e-05,2]
[397705282,1765222244503,-500.0,8.219e-05,2]
[397705284,1765222244513,-715.3,8.219e-05,2]
[397705286,1765222244522,-500.0,8.219e-05,2]
[397705288,1765222244532,-1789.33,8.219e-05,2]
[397705290,1765222244542,-500.0,8.219e-05,2]
[397705292,1765222244551,-964.86,8.219e-05,2]
[397705295,1765222244560,-500.0,8.219e-05,2]
[397705296,1765222244570,-1402.27,8.219e-05,2]
[397705298,1765222244579,-500.0,8.219e-05,2]
[397705300,1765222244588,-500.0,8.219e-05,2]
[397705302,1765222244597,-500.0,8.219e-05,2]
[397705304,1765222244607,-2421.35,8.219e-05,2]
[397705306,1765222244616,-7192.87,8.219e-05,2]
[397705307,1765222244626,-500.0,8.219e-05,2]
[397705308,1765222244635,-181.44395826,8.219e-05,2]
[397705309,1765222244644,-500.0,8.219e-05,2]
[397705310,1765222244654,-500.0,8.219e-05,2]
[397705311,1765222244664,-500.0,8.219e-05,2]
[397705312,1765222244678,-500.0,8.219e-05,2]
[397705313,1765222244687,-4093.48,8.219e-05,2]
[397705314,1765222244698,-500.0,8.219e-05,2]
[397705315,1765222244708,-1296.74,8.219e-05,2]
[397705316,1765222244721,-581.0,8.219e-05,2]
[397705317,1765222244732,-500.0,8.219e-05,2]
[397705318,1765222244745,-500.0,8.219e-05,2]
[397705319,1765222244755,-500.0,8.219e-05,2]
[397705320,1765222244766,-500.0,8.219e-05,2]
[397705321,1765222244775,-880.65,8.219e-05,2]
[397705322,1765222244784,-5000.0,8.219e-05,2]
[397705323,1765222244794,-500.0,8.219e-05,2]
[397705324,1765222244803,-500.0,8.219e-05,2]
[397705325,1765222244812,-5635.47,8.219e-05,2]
[397705326,1765222244821,-500.0,8.219e-05,2]
[397705327,1765222244831,-1503.91,8.219e-05,2]
[397705328,1765222244840,-500.0,8.219e-05,2]
[397705329,1765222244849,-1349.58,8.219e-05,2]
[397705331,1765222244859,-1241.27,8.219e-05,2]
[397705333,1765222244867,-2377.86,8.219e-05,2]
[397705335,1765222244876,-500.0,8.219e-05,2]
[397705337,1765222244885,-500.0,8.219e-05,2]
[397705339,1765222244894,-500.0,8.219e-05,2]
[397705341,1765222244904,-500.0,8.219e-05,2]
[397705343,1765222244913,-1013.03,8.219e-05,2]
[397705345,1765222244922,-500.0,8.219e-05,2]
[397705365,1765222244931,-747.78,8.219e-05,2]
[397705368,1765222245121,-1036.41,8.219e-05,2]
[397705370,1765222245130,-500.0,8.219e-05,2]
[397705372,1765222245139,-500.0,8.219e-05,2]
[397705374,1765222245148,-500.93455533,8.219e-05,2]
[397705376,1765222245158,-500.0,8.219e-05,2]
[397705378,1765222245168,-500.0,8.219e-05,2]
[397705380,1765222245177,-500.0,8.219e-05,2]
[397705382,1765222245186,-2583.89,8.219e-05,2]
[397705384,1765222245195,-3048.49,8.219e-05,2]